Cogmind - Beta 16.1 @@@ ROGUE MODE // 2026.03.17 @ 19:43:03 Player: naththebg Result: Self-destructed Performance ------------- Evolutions (3) 1500 Regions Visited (11) 2200 Robots Destroyed (128) 640 Value Destroyed (4322) 4322 Prototype IDs (35) 700 Alien Tech Used (0) 0 Bonus (3389) 3389 TOTAL SCORE: 12751 Bonus ------- High Alert Combat Kills 432 Follower Combat Kills 786 Entered Garrisons 400 Used RIF Installer 1500 Aligned with FarCom 300 Friendly Fire -29 Cogmind --------- Core Integrity 477/700 Matter 3/300 Energy 91/100 System Corruption 27% Temperature Cool (4) Movement Core (1450) Ox28 Location -7/Factory Parts ------- > --- POWER (1) -------- (None) > --- PROPULSION (3) --- (None) > --- UTILITY (6) ------ Huge Storage Unit Hacking Suite Relay Coupler [NC] (13) Relay Coupler [Grunt] (7) > --- WEAPON (3) ------- Gauss Cannon > --- INVENTORY (25) --- Improved Ion Engine Potential Leg Potential Leg Wheel Improved Cooling System Cloak of Protection Improved Propulsion Shielding Hacking Suite Relay Coupler [NC] (35) Relay Coupler [NC] (37) Relay Coupler [Swarmer] (33) Relay Coupler [Grunt] (21) Relay Coupler [Sentry] (29) Relay Coupler [Sentry] (27) Relay Coupler [Sentry] (29) Relay Coupler [Specialist] (32) Relay Coupler [Hunter] (20) Supersonic Drone Bay (1/1) Improved Spread Laser Advanced Assault Cannon Gauss Cannon Remote Datajack Remote Datajack Peak State ------------ > --- POWER ------------ Heavy Deuterium Engine > --- PROPULSION ------- Armored Treads Armored Wheel Armored Wheel > --- UTILITY ---------- Huge Storage Unit Hardened Medium Armor Plating Medium Reactive Plating Hacking Suite Relay Coupler [NC] Relay Coupler [Grunt] > --- WEAPON ----------- Gauss Cannon Gauss Cannon Remote Datajack > --- INVENTORY -------- Improved Ion Engine Potential Leg Potential Leg Wheel Improved Cooling System Cloak of Protection Improved Propulsion Shielding Hacking Suite Relay Coupler [NC] Relay Coupler [NC] Relay Coupler [Swarmer] Relay Coupler [Grunt] Relay Coupler [Sentry] Relay Coupler [Sentry] Relay Coupler [Sentry] Relay Coupler [Specialist] Relay Coupler [Hunter] Supersonic Drone Bay Improved Spread Laser Advanced Assault Cannon Gauss Cannon Gauss Cannon Improved Grenade Launcher Remote Datajack [Rating: 49] Favorites ----------- Power Light Deuterium Engine Engine Light Deuterium Engine Power Core Nuclear Core Propulsion Armored Treads Treads Armored Treads Leg Aluminum Leg Wheel Armored Wheel Utility High-capacity Storage Unit Device Improved Heat Sink Storage High-capacity Storage Unit Processor Advanced Targeting Computer Hackware Hacking Suite Protection Hardened Medium Armor Plating Weapon Gauss Cannon Energy Gun Medium Laser Energy Cannon Plasma Cannon Ballistic Gun Assault Rifle Ballistic Cannon Gauss Cannon Launcher Improved Grenade Launcher Special Weapon Remote Datajack Build | -11 -10 -10 -10 -9 -8 -8 -8 -8 -7 -7 -7 ------- Run | Yrd Mat Min Exi Min Mat Gar Mat Gar Fac Was Fac Slots Evolved 6 | . . . . . 4 . . . 2 . . Power . | . . . . . . . . . . . . Propulsion 1 | . . . . . 1 . . . . . . Utility 4 | . . . . . 2 . . . 2 . . Weapon 1 | . . . . . 1 . . . . . . Parts Attached 62 | 6 7 1 4 3 24 6 2 3 6 . . Power 6 | 1 1 . . . 3 . . . 1 . . Engine 5 | 1 1 . . . 2 . . . 1 . . Core 1 | . . . . . 1 . . . . . . Reactor . | . . . . . . . . . . . . Propulsion 16 | 2 2 1 2 1 5 2 . . 1 . . Treads 8 | . . . 2 1 5 . . . . . . Leg 5 | 2 2 1 . . . . . . . . . Wheel 3 | . . . . . . 2 . . 1 . . Hover . | . . . . . . . . . . . . Flight . | . . . . . . . . . . . . Utility 24 | 1 2 . 2 2 6 3 2 2 4 . . Device 5 | . 1 . 1 1 2 . . . . . . Storage 4 | 1 . . 1 1 . . . . 1 . . Processor 1 | . . . . . 1 . . . . . . Hackware 7 | . . . . . . 2 2 2 1 . . Protection 7 | . 1 . . . 3 1 . . 2 . . Artifact . | . . . . . . . . . . . . Weapon 16 | 2 2 . . . 10 1 . 1 . . . Energy Gun 5 | 1 2 . . . 2 . . . . . . Energy Cannon 1 | . . . . . 1 . . . . . . Ballistic Gun 3 | 1 . . . . 2 . . . . . . Ballistic Cannon 4 | . . . . . 3 . . 1 . . . Launcher 2 | . . . . . 2 . . . . . . Special Weapon 1 | . . . . . . 1 . . . . . Impact Weapon . | . . . . . . . . . . . . Slashing Weapon . | . . . . . . . . . . . . Piercing Weapon . | . . . . . . . . . . . . Special Melee Weapon . | . . . . . . . . . . . . Unidentified Prototypes 2 | . . . . . 2 . . . . . . Parts Lost 9 | . 3 . . . 1 . . 1 . 3 1 Power 2 | . 1 . . . . . . 1 . . . Propulsion 2 | . . . . . . . . . . 1 1 Utility 1 | . . . . . . . . . . 1 . Weapon 4 | . 2 . . . 1 . . . . 1 . Highest Loss Streak 2 | . 2 . . . 1 . . 1 . 1 1 To Critical Strikes . | . . . . . . . . . . . . Average Backups 17 | 4 7 8 8 14 19 20 19 19 21 24 24 Power . | . . . . . . 1 1 . . 1 1 Propulsion 4 | 2 4 5 4 6 5 4 4 3 2 3 3 Utility 9 | . 1 2 3 5 8 11 11 13 13 14 14 Weapon 3 | . . . . 2 5 2 2 2 3 4 4 Tool/Special . | . . . . . . . . . . . . Unused Backups 36 | . . . 1 . 9 2 . 7 . . 17 Power . | . . . . . . . . . . . . Propulsion 5 | . . . . . 2 . . 1 . . 2 Utility 25 | . . . 1 . 4 2 . 6 . . 12 Weapon 5 | . . . . . 3 . . . . . 2 Tool/Special 1 | . . . . . . . . . . . 1 Average Slot Usage (%) 97 | . 97 100 100 100 99 100 100 99 98 90 37 Engine 8 | . 13 14 14 14 4 9 9 8 7 7 . Core 1 | . . . . . 4 . . . . . . Treads 14 | . . . 12 28 26 11 9 9 7 5 . Leg 3 | . 28 28 15 . . . . . . . . Wheel 7 | . . . . . . 15 18 18 15 13 6 Device 5 | . 10 . 1 13 11 5 . . . . . Storage 9 | . 14 14 14 14 9 9 9 9 7 7 7 Processor 3 | . . . . . 5 9 4 . . . . Hackware 7 | . . . . . . 7 18 20 19 23 23 Protection 7 | . 1 14 12 . 8 4 4 5 17 11 . Energy Gun 6 | . 19 28 28 28 1 . . . . . . Ballistic Cannon 14 | . . . . . 22 19 18 20 15 11 . Special Weapon 3 | . . . . . . 7 8 4 6 1 . Peak Build Rating 49 | 6 8 9 18 20 42 41 39 39 49 49 22 Average Rating 32 | 3 6 8 11 17 38 39 37 37 46 43 19 On Entrance 23 | . 6 8 9 12 20 41 39 37 38 49 20 Avg Prop Armor Cover (%) 8 | . . . . . . 9 9 8 6 6 . Naked Turns . | . . . . . . . . . . . . Heaviest Build 140 | 14 18 18 23 51 77 75 73 76 140 139 80 Greatest Support 71 | 20 20 20 40 48 71 65 22 22 24 24 12 Greatest Overweight (x) 8 | 2 . . . 1 1 3 3 3 5 8 6 Average Overweight (x) 1 | . . . . . . 2 2 2 4 5 6 Largest Inventory Capacity 25 | 8 8 8 10 20 20 20 20 20 25 25 25 Average Capacity 18 | 7 8 8 8 16 20 20 20 20 24 25 25 Most Carried 24 | 6 8 8 10 19 20 20 20 20 24 24 24 Average Carried 17 | 4 7 8 8 14 19 19 19 19 21 24 23 Final Capacity 25 | 8 8 8 10 20 20 20 20 20 25 25 25 Final Carried 24 | 6 8 8 10 19 20 20 20 20 24 24 23 Class Distribution -------------------- 30% | Skirmisher 23% | Mutant 17% | Bothacker-Skirmisher 12% | Commander-Skirmisher 11% | Bothacker-Tank Dominant Class ---------------- Mutant | -10/Materials Mutant | -10/Mines Mutant | -10/Exiles Mutant | -9/Mines Skirmisher | -8/Materials Commander-Skirmisher | -8/Garrison Bothacker-Skirmisher | -8/Materials Bothacker-Skirmisher | -8/Garrison Bothacker-Tank | -7/Factory Bothacker-Tank | -7/Waste Bothacker-Mutant | -7/Factory Resources | -11 -10 -10 -10 -9 -8 -8 -8 -8 -7 -7 -7 ----------- Run | Yrd Mat Min Exi Min Mat Gar Mat Gar Fac Was Fac Matter Collected 3690 | 260 151 20 . 90 1229 40 817 786 287 10 . Remotely . | . . . . . . . . . . . . Salvage Created 3538 | . 512 . . 74 1265 . 572 534 320 261 . Parts 230 | . 28 . . 6 94 . 41 39 22 . . Haulers Intercepted 10 | . . . . . 6 . 4 . . . . Recyclers Shooed . | . . . . . . . . . . . . Parts Field Recycled . | . . . . . . . . . . . . Retrieved Matter . | . . . . . . . . . . . . Parts Self-Destructed . | . . . . . . . . . . . . Prevented . | . . . . . . . . . . . . Parts Restored . | . . . . . . . . . . . . Kills | -11 -10 -10 -10 -9 -8 -8 -8 -8 -7 -7 -7 ------- Run | Yrd Mat Min Exi Min Mat Gar Mat Gar Fac Was Fac Combat Hostiles Destroyed 87 | . 14 . . 4 35 . 8 21 4 1 . Guns 17 | . 12 . . 4 1 . . . . . . Cannons 38 | . . . . . 17 . 5 13 3 . . AOE 31 | . 2 . . . 16 . 3 8 1 1 . Classes Destroyed 15 | . 4 . . 1 7 . 1 1 . 1 . Worker 5 | . . . . . 4 . 1 . . . . Builder 11 | . 1 . . . 3 . 4 . 3 . . Hauler 10 | . . . . . 6 . 4 . . . . Recycler 3 | . . . . . . . 1 . 2 . . Mechanic 3 | . . . . . 1 . 1 . . 1 . Operator 1 | . . . . . 1 . . . . . . Watcher 6 | . 2 . . . 3 . . . 1 . . Swarmer 25 | . 5 . . 3 13 . 1 3 . . . Cutter 3 | . . . . . . . . 3 . . . Grunt 25 | . 9 . . . 11 . 3 2 . . . Sentry 21 | . . . . . 8 . 4 7 2 . . Demolisher 1 | . . . . 1 . . . . . . . Hunter 6 | . . . . . 2 . 1 1 2 . . Programmer 7 | . . . . . 1 . . 5 1 . . Compactor 1 | . . . . . . . . . . 1 . Best Kill Streak 11 | . 5 . . 3 11 . 7 6 4 1 . Combat Bots Only 7 | . 4 . . 3 7 . 2 6 2 1 . Max Kills in Single Turn 4 | . 2 . . 1 4 . 2 3 4 1 . Gunslinging . | . . . . . . . . . . . . Exploded 3 | . 2 . . . 3 . 1 3 1 1 . Melee . | . . . . . . . . . . . . Uniques/NPCs Destroyed . | . . . . . . . . . . . . Combat | -11 -10 -10 -10 -9 -8 -8 -8 -8 -7 -7 -7 -------- Run | Yrd Mat Min Exi Min Mat Gar Mat Gar Fac Was Fac Hostile Shots Fired 369 | . 70 3 . 14 111 . 59 56 26 4 26 Missed 111 | . 26 1 . 3 28 . 20 16 12 1 4 Hits 258 | . 44 2 . 11 83 . 39 40 14 3 22 Melee 3 | . . . . . . . . . . 3 . Projectile 255 | . 44 2 . 11 83 . 39 40 14 . 22 AOE 1 | . . . . . . . . . 1 . . Critical Strikes 11 | . . . . . 3 . 3 1 1 2 1 Damage Taken 3890 | . 481 24 . 86 1274 137 560 607 184 192 345 Core 608 | . 61 . . 22 96 . 97 109 . 56 167 Absorbed by Shields 52 | . . . . . . . . 52 . . . Ignored by Resistances 34 | . . . . . . . . . 34 . . Regen/Repaired (Parts) 973 | . . . . . 23 . 249 546 155 . . Core Remaining (%) 70 | 100 . . . 66 . . . 45 . . . Volleys Fired 317 | . 51 3 . 8 81 29 49 55 31 9 1 Largest 3 | . 2 2 . 2 3 1 2 3 3 1 1 Hottest 195 | . 90 115 . 115 195 40 80 120 120 36 40 Shots Fired 592 | . 97 6 . 15 195 29 87 96 57 9 1 Gun 147 | . 97 6 . 15 29 . . . . . . Cannon 367 | . . . . . 156 6 76 75 53 . 1 Launcher 29 | . . . . . 10 . 2 8 . 9 . Special 49 | . . . . . . 23 9 13 4 . . Kinetic 383 | . 39 . . . 133 6 76 75 53 . 1 Thermal 119 | . 48 6 . 15 50 . . . . . . Explosive 29 | . . . . . 10 . 2 8 . 9 . Electromagnetic 12 | . 10 . . . 2 . . . . . . Robot Hit Streak 18 | . 8 8 . 4 16 18 13 10 5 8 2 Robot Miss Streak 3 | . 3 1 . 3 2 2 3 3 3 1 . Penetration Max 1 | . . . . . 1 . 1 1 . . . Secondary Targets 1 | . 1 . . . . . . . . . . Max Gunslinging Chain 1 | . 1 . . . . . . . . . . Shots Hit Robots 336 | . 56 5 . 8 106 20 55 55 24 6 1 Core Hits 169 | . 28 1 . 4 66 . 22 28 13 7 . Critical Kills 1 | . . . . . 1 . . . . . . Critical Parts Destroyed . | . . . . . . . . . . . . Critical Strikes 31 | . 2 1 . 1 14 . 7 6 . . . Burn 4 | . 1 1 . 1 1 . . . . . . Meltdown 1 | . . . . . 1 . . . . . . Blast 25 | . . . . . 12 . 7 6 . . . Corrupt 1 | . 1 . . . . . . . . . . Melee Attacks . | . . . . . . . . . . . . Impact . | . . . . . . . . . . . . Slashing . | . . . . . . . . . . . . Piercing . | . . . . . . . . . . . . Sneak Attacks . | . . . . . . . . . . . . Combat Hostiles . | . . . . . . . . . . . . Follow-up Attacks . | . . . . . . . . . . . . Damage Inflicted 11376 | . 873 64 . 109 3970 . 1776 1844 1577 1106 57 Guns 1192 | . 762 64 . 109 257 . . . . . . Cannons 5954 | . . . . . 2589 . 1451 1318 565 . 31 Explosions 4181 | . 101 . . . 1113 . 325 524 1012 1106 . Melee . | . . . . . . . . . . . . Ramming 49 | . 10 . . . 11 . . 2 . . 26 Kinetic 5899 | . 278 . . . 2256 . 1451 1318 565 . 31 Thermal 2252 | . 485 64 . 109 582 . . . 1012 . . Explosive 3068 | . . . . . 1113 . 325 524 . 1106 . Electromagnetic 108 | . 100 . . . 8 . . . . . . Impact . | . . . . . . . . . . . . Slashing . | . . . . . . . . . . . . Piercing . | . . . . . . . . . . . . Highest Corruption 27 | . . . . . . . . . 1 26 27 Average Corruption 13 | . . . . . . . . . 1 13 26 Corruption Purged . | . . . . . . . . . . . . Corruption Blocked . | . . . . . . . . . . . . Effects 20 | . . . . . . . . . 2 13 5 Message Errors 4 | . . . . . . . . . 1 2 1 Matter Fused 3 | . . . . . . . . . . 2 1 Heat Flow Errors 2 | . . . . . . . . . 1 1 . Energy Discharges 3 | . . . . . . . . . . 2 1 Data Loss (minor) 3 | . . . . . . . . . . 2 1 Data Loss (major) 1 | . . . . . . . . . . 1 . Alerts 1 | . . . . . . . . . . . 1 Misdirections 3 | . . . . . . . . . . 3 . Overload Shots . | . . . . . . . . . . . . Overflow Damage 339 | . 3 . . . 118 . 22 89 107 . . Projectiles 151 | . . . . . 36 . 22 88 5 . . Explosions 188 | . 3 . . . 82 . . 1 102 . . Melee . | . . . . . . . . . . . . Knockbacks 27 | . . . . . 10 . 3 8 5 . 1 Impact . | . . . . . . . . . . . . Kinetic 26 | . . . . . 9 . 3 8 5 . 1 Secondary 1 | . . . . . 1 . . . . . . Self-Inflicted Damage 172 | . . . . . 128 . . . . 32 12 Shots 6 | . . . . . 5 . . . . 1 . Rammed 8 | . . . . . 2 . . 1 . . 5 Targets Rammed 11 | . 3 . . . 2 . . 1 . . 5 Kicked 3 | . 3 . . . . . . . . . . Crushed . | . . . . . . . . . . . . Highest Temperature 341 | . 81 201 . 189 341 . 54 260 231 270 4 Average Temperature 61 | . 33 104 . 86 54 . 16 92 47 180 3 Received Heat Transfer 1278 | . 204 12 . . 495 . 225 114 12 . 216 Effects 5 | . . . . . . . . 3 . 2 . Energy Bleed 1 | . . . . . . . . . . 1 . Interference 4 | . . . . . . . . 3 . 1 . Siege Activations . | . . . . . . . . . . . . Martial Activations . | . . . . . . . . . . . . Shielding Activations . | . . . . . . . . . . . . Robots Disrupted . | . . . . . . . . . . . . Combat Hostiles . | . . . . . . . . . . . . Robots Corrupted . | . . . . . . . . . . . . Combat Hostiles . | . . . . . . . . . . . . Parts Fried . | . . . . . . . . . . . . Impact Corruptions . | . . . . . . . . . . . . Robots Melted 1 | . . . . . 1 . . . . . . Combat Hostiles 1 | . . . . . 1 . . . . . . Parts Melted 8 | . . . . 2 6 . . . . . . Heat Transferred 4168 | . 1371 259 . 370 1318 . . . 850 . . Parts Sabotaged . | . . . . . . . . . . . . Parts Stolen . | . . . . . . . . . . . . Parts Stripped . | . . . . . . . . . . . . Power Chain Reactions 5 | . 1 . . . . . . . 4 . . Alert | -11 -10 -10 -10 -9 -8 -8 -8 -8 -7 -7 -7 ------- Run | Yrd Mat Min Exi Min Mat Gar Mat Gar Fac Was Fac Maximum Alert Level 3 | . . . . . 2 3 2 3 3 1 . Low Security (%) 34 | 100 100 100 . 100 40 . 7 . . 35 100 Level 1 25 | . . . . . 44 21 36 19 . 64 . Level 2 30 | . . . . . 14 61 55 14 96 . . Level 3 9 | . . . . . . 16 . 66 3 . . Level 4 . | . . . . . . . . . . . . Level 5 . | . . . . . . . . . . . . High Security . | . . . . . . . . . . . . Max Security . | . . . . . . . . . . . . Peak Influence 1026 | . 156 56 . 100 527 864 680 1026 747 257 84 Initial 538 | . . 27 . . . 254 421 256 538 257 84 Average 334 | . 63 12 . 18 219 539 410 736 545 203 48 Influence Increases 5086 | . 439 56 . 120 1297 610 1034 880 617 33 . Destroy 0b10 Robot/C 2200 | . 280 40 . 80 700 . 440 540 120 . . Destroy 0b10 Robot/NC 215 | . 15 . . . 90 . 75 . 35 . . Destroy Leader 528 | . 64 10 . 10 208 . 154 30 52 . . Allied During Kill 387 | . . 6 . . . . 278 88 15 . . Successful Hack 86 | . 15 . . . 4 40 7 6 14 . . Disable Machine 480 | . . . . 30 90 . 30 15 315 . . Anti-Garrison Action 650 | . . . . . . 550 . 100 . . . Destroy Structure 375 | . 5 . . . 145 20 50 56 66 33 . Partial Spotted 15 | . . . . . . . . 15 . . . Lose Combat Pursuer 150 | . 60 . . . 60 . . 30 . . . Influence Decreases 5082 | . 369 126 . 120 905 138 1503 249 908 648 116 Entered New Map 1765 | . . 43 . . . 138 443 139 488 478 36 Time Decay 1831 | . 203 83 . 120 445 . 410 . 380 120 70 Lost Part 90 | . 30 . . . 10 . . 10 . 30 10 Lost Ally 360 | . . . . . . . 200 100 40 20 . Purge Threat 1036 | . 136 . . . 450 . 450 . . . . Squads Dispatched 16 | . 2 . . . 6 . 5 . 3 . . Investigation 3 | . . . . . 1 . 1 . 1 . . Extermination 2 | . . . . . . . . . 2 . . Reinforcement 5 | . 2 . . . 2 . 1 . . . . Assault 1 | . . . . . . . 1 . . . . Garrison 5 | . . . . . 3 . 2 . . . . Intercept . | . . . . . . . . . . . . Searches Triggered . | . . . . . . . . . . . . Construction Impeded 1 | . . . . . 1 . . . . . . Haulers Reinforced . | . . . . . . . . . . . . Active Scanning Responses . | . . . . . . . . . . . . Cargo Convoy Interrupts . | . . . . . . . . . . . . Stealth | -11 -10 -10 -10 -9 -8 -8 -8 -8 -7 -7 -7 --------- Run | Yrd Mat Min Exi Min Mat Gar Mat Gar Fac Was Fac Distress Signals 12 | . 2 . . . 7 . 2 . 1 . . Communications Jammed . | . . . . . . . . . . . . Distress Signals . | . . . . . . . . . . . . Times Spotted 155 | . 23 2 . 4 53 . 29 28 8 6 2 Peak Tracking Total 7 | . 5 2 . 3 7 . 5 6 3 5 2 Tactical Retreats 9 | . 4 . . . 4 . . 1 . . . Traps | -11 -10 -10 -10 -9 -8 -8 -8 -8 -7 -7 -7 ------- Run | Yrd Mat Min Exi Min Mat Gar Mat Gar Fac Was Fac Traps Triggered 12 | . . . . . 1 2 . 7 2 . . Indirectly . | . . . . . . . . . . . . Trap Hack Attempts . | . . . . . . . . . . . . Triggered . | . . . . . . . . . . . . Disarmed . | . . . . . . . . . . . . Reprogrammed . | . . . . . . . . . . . . Reused . | . . . . . . . . . . . . Traps Extracted . | . . . . . . . . . . . . Installed . | . . . . . . . . . . . . Triggered . | . . . . . . . . . . . . Machines | -11 -10 -10 -10 -9 -8 -8 -8 -8 -7 -7 -7 ---------- Run | Yrd Mat Min Exi Min Mat Gar Mat Gar Fac Was Fac Machines Disabled 35 | . . . . 2 6 2 2 2 21 . . Max in Single Turn 7 | . . . . 1 2 1 1 1 7 . . Garrison Relay 3 | . . . . . . 2 . 1 . . . Machines Repaired . | . . . . . . . . . . . . Machines Dismantled . | . . . . . . . . . . . . Machines Sabotaged . | . . . . . . . . . . . . Overloaded Fab Kills . | . . . . . . . . . . . . Hacking | -11 -10 -10 -10 -9 -8 -8 -8 -8 -7 -7 -7 --------- Run | Yrd Mat Min Exi Min Mat Gar Mat Gar Fac Was Fac Machines Accessed 36 | . 4 . 1 1 12 5 6 2 5 . . Terminals 22 | . 3 . . . 7 5 3 2 2 . . Fabricators 1 | . . . . . . . . . 1 . . Repair Stations 2 | . . . . . 1 . . . 1 . . Recycling Units 4 | . 1 . . . 2 . 1 . . . . Scanalyzers 3 | . . . . . 1 . 1 . 1 . . Garrison Access 2 | . . . . . 1 . 1 . . . . Total Hacks 86 | . 12 . 1 1 36 10 14 3 9 . . Successful 43 | . 7 . 1 1 16 4 9 1 4 . . Failed 41 | . 5 . . . 19 6 4 2 5 . . Catastrophic 8 | . . . . . 5 . . 1 2 . . Database Lockouts 2 | . . . . . 1 . 1 . . . . Manual 29 | . 7 . 1 . 12 . 5 . 4 . . Terminals 58 | . 10 . . . 20 10 10 3 5 . . Fabricators 1 | . . . . . . . . . 1 . . Repair Stations 3 | . . . . . 2 . . . 1 . . Recycling Units 11 | . 2 . . . 8 . 1 . . . . Scanalyzers 8 | . . . . . 4 . 2 . 2 . . Garrison Access 3 | . . . . . 2 . 1 . . . . Terminal Hacks 25 | . 5 . 1 1 6 4 5 1 2 . . Record 1 | . . . . . 1 . . . . . . Prototype ID Bank 6 | . 3 . . . 1 . 2 . . . . Open Door 3 | . . . . 1 . 1 . 1 . . . Emergency Access Points 1 | . . . . . . 1 . . . . . Terminal Index 1 | . . . . . . . . . 1 . . Alert Level 1 | . . . . . 1 . . . . . . Unreport Threat 7 | . 1 . . . 3 . 3 . . . . Locate Traps 1 | . 1 . . . . . . . . . . Registered Components 1 | . . . . . . . . . 1 . . Patrol Navigation 1 | . . . . . . 1 . . . . . Security Stations 1 | . . . . . . 1 . . . . . Proto ID Catalog 1 | . . . 1 . . . . . . . . Fabricator Hacks . | . . . . . . . . . . . . Repair Station Hacks 2 | . . . . . 2 . . . . . . Scan Component 1 | . . . . . 1 . . . . . . Repair 1 | . . . . . 1 . . . . . . Recycling Unit Hacks 3 | . 1 . . . 1 . 1 . . . . Retrieve Components 3 | . 1 . . . 1 . 1 . . . . Scanalyzer 4 | . . . . . 3 . 1 . . . . Retrieve Study 4 | . . . . . 3 . 1 . . . . Garrison Access Hacks 2 | . . . . . 1 . 1 . . . . Unlock Access 2 | . . . . . 1 . 1 . . . . Unauthorized Hacks 7 | . 1 . . . 3 . 1 . 2 . . Terminals 5 | . 1 . . . 2 . 1 . 1 . . Botnet 5 | . 1 . . . 2 . 1 . 1 . . Fabricators . | . . . . . . . . . . . . Repair Stations 1 | . . . . . . . . . 1 . . Mechanics 1 | . . . . . . . . . 1 . . Recycling Units . | . . . . . . . . . . . . Scanalyzers . | . . . . . . . . . . . . Garrison Access 1 | . . . . . 1 . . . . . . Restock 1 | . . . . . 1 . . . . . . Data Cores Recovered . | . . . . . . . . . . . . Used . | . . . . . . . . . . . . Hacking Detections 25 | . 3 . . . 11 4 3 1 3 . . Full Trace Events 4 | . . . . . 1 1 . 1 1 . . Feedback Events . | . . . . . . . . . . . . Feedback Blocked . | . . . . . . . . . . . . Robot Schematics Acquired . | . . . . . . . . . . . . Robots Built . | . . . . . . . . . . . . Authchips . | . . . . . . . . . . . . Time . | . . . . . . . . . . . . Total Robot Build Rating . | . . . . . . . . . . . . Part Schematics Acquired . | . . . . . . . . . . . . Parts Built . | . . . . . . . . . . . . Authchips . | . . . . . . . . . . . . Time . | . . . . . . . . . . . . Total Part Build Rating . | . . . . . . . . . . . . Part Studies Acquired 4 | . . . . . 3 . 1 . . . . Parts Repaired 1 | . . . . . 1 . . . . . . Time 26 | . . . . . 26 . . . . . . Parts Recycled . | . . . . . . . . . . . . Recycled Matter . | . . . . . . . . . . . . Retrieved Matter . | . . . . . . . . . . . . Retrieved Components 9 | . 3 . . . 3 . 3 . . . . Parts Scanalyzed . | . . . . . . . . . . . . Part Schematics Acquired . | . . . . . . . . . . . . Parts Damaged . | . . . . . . . . . . . . Bothacking | -11 -10 -10 -10 -9 -8 -8 -8 -8 -7 -7 -7 ------------ Run | Yrd Mat Min Exi Min Mat Gar Mat Gar Fac Was Fac Used RIF Installer 3 | . . . . . . 1 . 2 . . . Watcher Feeds 1 | . . . . . . . . 1 . . . Autooverride 1 | . . . . . . . . 1 . . . Robots Hacked 10 | . . . . . . . 4 3 3 . . Non-combat 5 | . . . . . . . 2 . 3 . . Combat 5 | . . . . . . . 2 3 . . . Robot Hacks Applied 10 | . . . . . . . 4 3 3 . . drop_inventory 1 | . . . . . . . . . 1 . . map_route 1 | . . . . . . . . . 1 . . amplify_resonance 2 | . . . . . . . 1 1 . . . formatsys_low 3 | . . . . . . . 2 . 1 . . formatsys_high 3 | . . . . . . . 1 2 . . . Relay Couplers Released 19 | . . . . . 3 9 . 7 . . . Machine Destruction 12 | . . . . . . 9 . 3 . . . Programmers 7 | . . . . . 3 . . 4 . . . Attached 5 | . . . . . . . 2 2 1 . . Fabnet Peak Effective % . | . . . . . . . . . . . . Robots Rewired 18 | . . . . . . 15 . 3 . . . Allies Hacked 1 | . . . . . . . . 1 . . . Hacks Repelled . | . . . . . . . . . . . . Allies | -11 -10 -10 -10 -9 -8 -8 -8 -8 -7 -7 -7 -------- Run | Yrd Mat Min Exi Min Mat Gar Mat Gar Fac Was Fac Total Allies 27 | . . 2 . . . 16 3 5 1 . . Largest Group 15 | . . 2 2 . . 15 15 7 6 3 . Highest-Rated Group 229 | . . 44 44 . . 229 229 128 111 50 . Highest-Rated Ally 31 | . . 31 31 . . 31 31 31 25 23 . Total Orders 9 | . . . 2 . . . 3 3 1 . . STAY 1 | . . . . . . . . 1 . . . AID 6 | . . . . . . . 3 2 1 . . EXPLORE 1 | . . . 1 . . . . . . . . RETURN 1 | . . . 1 . . . . . . . . Ally Attacks 148 | . . 7 . . . . 95 42 4 . . Total Damage 2544 | . . 147 . . . . 1483 830 84 . . Kills 29 | . . 2 . . . . 18 6 3 . . Allies Corrupted . | . . . . . . . . . . . . Allies Melted . | . . . . . . . . . . . . Intel | -11 -10 -10 -10 -9 -8 -8 -8 -8 -7 -7 -7 ------- Run | Yrd Mat Min Exi Min Mat Gar Mat Gar Fac Was Fac Active Infowar (turns) . | . . . . . . . . . . . . Robot Analysis Total . | . . . . . . . . . . . . Derelict Logs Recovered 5 | . . 2 . 3 . . . . . . . Drone Launches 1 | . . . 1 . . . . . . . . Drone Recoveries 1 | . . . 1 . . . . . . . . Exploration | -11 -10 -10 -10 -9 -8 -8 -8 -8 -7 -7 -7 ------------- Run | Yrd Mat Min Exi Min Mat Gar Mat Gar Fac Was Fac Turns Passed 9080 | 55 503 353 658 569 2701 1098 987 868 883 249 156 Spaces Moved 4918 | 37 258 275 439 253 983 789 659 505 502 146 72 Core 14 | 14 . . . . . . . . . . . Treads 1467 | . . . 180 253 983 44 . 7 . . . Legs 815 | 23 258 275 259 . . . . . . . . Wheels 2622 | . . . . . . 745 659 498 502 146 72 Hover . | . . . . . . . . . . . . Flight . | . . . . . . . . . . . . Fastest Speed 50 | 50 120 120 120 160 160 110 105 105 120 140 170 Average Speed 151 | 110 120 120 136 204 226 122 113 117 149 158 170 Slowest Speed 290 | 190 120 120 160 240 243 224 125 290 155 200 170 Overloaded Moves . | . . . . . . . . . . . . Propulsion Burnouts . | . . . . . . . . . . . . Robots Hopped . | . . . . . . . . . . . . Potential Cave-ins . | . . . . . . . . . . . . Cave-ins Triggered . | . . . . . . . . . . . . Exploration Rate (%) 57 | 4 56 63 91 74 83 92 59 59 19 82 3 Regions Visited 11 Branch Regions 3 Pre-discovered Areas 4 | . . 2 . 2 . . . . . . . Known Exits Taken 2 | . . . . . 1 . 1 . . . . Unknown Exits Taken 5 | 1 1 1 1 1 . . . . . . . Scrap Searched 3 | . . 1 . 2 . . . . . . . Spaces Dug 76 | . . . . . 61 . 3 2 1 9 . Terrain Destroyed 358 | . 3 . . . 156 . 43 31 74 51 . Melee . | . . . . . . . . . . . . Projectile 112 | . . . . . 72 . 26 1 13 . . AOE 246 | . 3 . . . 84 . 17 30 61 51 . Terrain Rammed . | . . . . . . . . . . . . Walls Destroyed . | . . . . . . . . . . . . Machines Disabled . | . . . . . . . . . . . . Actions | -11 -10 -10 -10 -9 -8 -8 -8 -8 -7 -7 -7 --------- Run | Yrd Mat Min Exi Min Mat Gar Mat Gar Fac Was Fac Total 6032 | 49 352 293 499 292 1305 905 811 704 578 155 89 Wait 521 | . 31 12 45 15 150 48 97 88 25 . 10 Move 4909 | 36 257 274 438 252 982 788 659 504 502 145 72 Hop . | . . . . . . . . . . . . Pick Up 71 | 7 2 1 6 11 20 5 1 13 5 . . Fast Attach 18 | 5 3 . . . 7 . . . 3 . . Attach 18 | 1 2 . . . 5 1 1 4 3 . 1 Detach 1 | . . . . . . . . . 1 . . Swap 68 | . 2 1 5 3 30 6 3 11 6 1 . Drop 57 | . 1 2 5 3 28 5 1 11 1 . . Fire 317 | . 51 3 . 8 81 29 49 55 31 9 1 Melee . | . . . . . . . . . . . . Ram 5 | . . . . . . . . . . . 5 Kick 3 | . 3 . . . . . . . . . . Crush 3 | . . . . . 2 . . 1 . . . Escape Stasis 16 | . . . . . . . . 16 . . . Rewire 25 | . . . . . . 23 . 1 1 . . Trap . | . . . . . . . . . . . . Miscellaneous . | . . . . . . . . . . . . Route ------- -11/Scrapyard -10/Materials (discovered 3 exits: [*Mat] / [*Min x2]) -10/Mines (discovered 2 exits: [*Mat] / *Exi) -10/Exiles (discovered 2 exits: *Min x2) -9/Mines -8/Materials (discovered 4 exits: *Fac x3 / Gar) -8/Garrison (discovered 4 exits: *Mat x4) -8/Materials (discovered 3 exits: *Fac x2 / Gar) -8/Garrison (discovered 2 exits: *Fac x2) -7/Factory -7/Waste -7/Factory History --------- Turn | Location | Event 25 | -11/Scrapyard | Discovered new exit (range 16) 56 | -11/Scrapyard | Entered Materials 177 | -10/Materials | Discovered new exit (range 16) 312 | -10/Materials | Build established: Mutant 405 | -10/Materials | Discovered new exit (range 11) 437 | -10/Materials | Discovered new exit (range 16) 559 | -10/Materials | Entered Mines 574 | -10/Mines | Learned 4 Materials zone layouts 635 | -10/Mines | Learned location of Recycling (-9) 649 | -10/Mines | Discovered new exit (range 6) 689 | -10/Mines | Learned location of Storage (-9) 734 | -10/Mines | Found a damaged Exp. Sensor Array with a note attached 899 | -10/Mines | Deemed a non-threat by the Exiles lab entrance 899 | -10/Mines | Discovered new exit (range 5) 912 | -10/Mines | Entered Exiles 912 | -10/Exiles | Accompanied by 2 allies 941 | -10/Exiles | Met 8R-AWN 942 | -10/Exiles | Led the pair of lost Derelicts to a safe place 963 | -10/Exiles | Met EX-HEX 1035 | -10/Exiles | Met EX-BIN 1057 | -10/Exiles | Aligned with FarCom system 1058 | -10/Exiles | Given EX-Vault access code 1087 | -10/Exiles | Opened EX-Vault 1094 | -10/Exiles | Found Supersonic Drone Bay 1132 | -10/Exiles | Discovered new exit (range 53) 1138 | -10/Exiles | Discovered new exit (range 68) 1156 | -10/Exiles | Found Potential Leg 1158 | -10/Exiles | Found Potential Leg 1160 | -10/Exiles | Found Cloak of Protection 1190 | -10/Exiles | Warned to stay clear of 0b10 Research branches 1224 | -10/Exiles | Met EX-DEC 1570 | -10/Exiles | Stole three prototypes: Potential Leg, Cloak of Protection, Supersonic Drone Bay 1570 | -10/Exiles | Entered Mines 1574 | -9/Mines | Met a Derelict bent on vengeance 1615 | -9/Mines | Learned location of Zion (-7) 1711 | -9/Mines | Learned 2 Materials zone layouts 1744 | -9/Mines | Received a Rocket Launcher from a helpful Derelict 1761 | -9/Mines | Met a Derelict who couldn't figure out how to use a Trap Extractor 1964 | -9/Mines | Assembled infested the area 1969 | -9/Mines | Assisted by a Guerilla fighting off Assembled 2122 | -9/Mines | Discovered new exit (range 7) 2139 | -9/Mines | Entered Materials 2139 | -8/Materials | Evolved 4 slots: Propulsion x1, Utility x2, Weapon x1 2140 | -8/Materials | Identified exit to Factory 2307 | -8/Materials | Repaired Heat Sink 2756 | -8/Materials | Build established: Skirmisher 3441 | -8/Materials | Discovered exit to Factory (range 10) 3476 | -8/Materials | Garrison activated, responded to threat 3814 | -8/Materials | Central database locked down 4015 | -8/Materials | Destroyed 7 combat bots 4692 | -8/Materials | Identified exit to Garrison 4840 | -8/Materials | Entered Garrison 4840 | -8/Garrison | Discovered recently destroyed garrison 5015 | -8/Garrison | Learned Materials security intel 5098 | -8/Garrison | Garrison Relay disabled 5219 | -8/Garrison | Discovered new exit (range 12) 5231 | -8/Garrison | Discovered new exit (range 13) 5345 | -8/Garrison | Rescued a captive Derelict 5372 | -8/Garrison | Discovered new exit (range 9) 5377 | -8/Garrison | Build established: Commander-Skirmisher 5545 | -8/Garrison | Discovered new exit (range 11) 5602 | -8/Garrison | Garrison Relay disabled 5640 | -8/Garrison | Installed Relay Interface Framework 5938 | -8/Garrison | Entered Materials 5938 | -8/Materials | Accompanied by 15 allies 6193 | -8/Materials | Discovered exit to Factory (range 13) 6241 | -8/Materials | Lost 7 allies 6311 | -8/Materials | Central database locked down 6338 | -8/Materials | First assault squad dispatched 6482 | -8/Materials | Build established: Bothacker-Skirmisher 6571 | -8/Materials | Discovered exit to Factory (range 8) 6793 | -8/Materials | Garrison activated, responded to threat 6901 | -8/Materials | Garrison activated, responded to threat 6916 | -8/Materials | Identified exit to Garrison 6925 | -8/Materials | Entered Garrison 6925 | -8/Garrison | Accompanied by 6 allies 7031 | -8/Garrison | Triggered checkpoint 7057 | -8/Garrison | Expanded RIF knowledge: Watcher Feeds 7135 | -8/Garrison | Lost 4 allies 7157 | -8/Garrison | P-60 Hacker assimilated allied Commando 3a 7259 | -8/Garrison | Core integrity fell below 50% 7284 | -8/Garrison | Expanded RIF knowledge: Autooverride 7311 | -8/Garrison | Triggered checkpoint 7317 | -8/Garrison | Discovered exit to Factory (range 14) 7437 | -8/Garrison | Garrison Relay disabled 7533 | -8/Garrison | Discovered exit to Factory (range 13) 7737 | -8/Garrison | Triggered checkpoint 7793 | -8/Garrison | Entered Factory 7793 | -7/Factory | Accompanied by 5 allies 7793 | -7/Factory | Evolved 2 slots: Utility x2 7795 | -7/Factory | FarCom data flow suspended 8097 | -7/Factory | Build established: Bothacker-Tank 8676 | -7/Factory | Sucked down chute 8676 | -7/Factory | Entered Waste 8691 | -7/Waste | EMP discharged 8696 | -7/Waste | 3 allies followed down the chute 8720 | -7/Waste | Spotted C-40 Crusher 8726 | -7/Waste | Spotted C-40 Crusher 8746 | -7/Waste | Destroyed C-40 Crusher 8748 | -7/Waste | Spotted C-40 Crusher 8770 | -7/Waste | Lost 3 allies 8786 | -7/Waste | Spotted C-40 Crusher 8791 | -7/Waste | EMP discharged 8791 | -7/Waste | System corruption reached 10% 8808 | -7/Waste | Spotted C-40 Crusher 8854 | -7/Waste | Crushed by Compactor (1 part destroyed, 2 dropped) 8873 | -7/Waste | Spotted C-40 Crusher 8888 | -7/Waste | Crushed by Compactor (1 part destroyed, 2 dropped) 8891 | -7/Waste | EMP discharged 8905 | -7/Waste | Discovered new exit (range 10) 8925 | -7/Waste | Crushed by Compactor (1 part destroyed, 1 dropped) 8925 | -7/Waste | Entered Factory 9081 | -7/Factory | Self-destructed Last Messages --------------- 08891_ System corrupted (+10). 08891_ Corrupted Prototype Device fried beyond repair. 08898_ System corrupted: Energy discharge (-77). 08905_ EXIT=FOUND 08925_ Imp. Grenade Launcher+ crushed. 08925_ Hvy. Deuterium Engine crushed. LOCATION=UNKNOWN GOAL=ESCAPE 08967_ HJCHSL:QA7RLEZ 09064_ Arm. Wheel+ destroyed. 09065_ Slammed into G-47 Trooper. 09065_ Destabilizing: System corrupted (+1). 09068_ Critical hit (Burn: +37). 09076_ System corrupted: Matter fused (-7). 09079_ G-47 Trooper knocked back. Map ----- +----------------------------------------------------+ | ?????????????????????????????????????????????????? | | ?????????????????????????????????????????????????? | | ?????????????????????????????????????????????????? | | ?????????????????????????????????????????????????? | | ?????????????????????????????????????????????????? | | ?????????????????????????????????????????????????? | | ?????????????????????????????????????????????????? | | ?????????????????????????????????????????????????? | | ???????????????????#?????????????????????????????? | | ?????????????????? ]?????????????????????????????? | | ??????????# ?????? ?????????????????????????????? | | ??????????# ????? ""????????????????????######### | | ??????????# ??"" """???################# ! | | ??????????# """ """?#?# =# #! ] | | ??????????# #?# """ # # | | ??????????# """ """ #?# """ "" # # | | ??????????# ! """ """ #?# """ """# + | | ??????????# """ """ #?# S"# # ! | | ??????????# #?#*!! """# # ! | | ??????????# #?#*!! """# # | | ??????????# #?#!! # # | | ??????###########+##############+### ######### | | | | ??????######### % ########? | | ??????????????# #???????? | | ??????????????# @ g #???????? | | ????????? " #???????? | | ????????# #############/############+########??? | | ????????##??????# g # #??? | | ????????????????# """ """ """ #/// """ """ #??? | | ??????????????????""" """ """ #/// """ """ #??? | | ??????????????????""" """ """ #/// """ """ ???? | | ?????????????????? !# ???? | | ?????????????????? ! # ! ????? | | ??????????????????############################???? | | | | | | | | | | | | | | | | | | | | | | | | | | | | | | | +----------------------------------------------------+ Best States ------------- Heat Dissipation 55 Energy Generation 18 Energy Capacity 310 Matter Stores 300 Matter Capacity 300 Sight Range 16 Terrain Scan Density 10 Armor Coverage 450 Resistance: KI 30 Propulsion Shielding 66 Evasion (%) 55 Targeting Accuracy 8 Recoil Reduction 3 Offensive Hacking 20 Relay Coupler Types 2 Relay Coupler Value 33 Item Schematics ----------------- None Robot Schematics ------------------ None Fabricated ------------ Nothing Repaired ---------- Heat Sink | 23% | -8/Materials Studied --------- Arm. Wheel | -8/Materials | Hacked Imp. Grenade Launcher | -8/Materials | Hacked Arm. Treads | -8/Materials | Hacked Wheel | -8/Materials | Hacked Alien Tech Used ----------------- None Achievements -------------- Morally Flexible Challenges ------------ None Game ------ Seed BlinkSmartMace Manual? 0 Play Time 01:09:39 Cumulative 481.8 hours Start 2026.03.14 @ 20:59:56 End 2026.03.17 @ 19:43:03 Sessions 7 Manual Loads 0 Difficulty Rogue Special Mode None Game No. 237 Rogue 237 Adventurer 0 Explorer 0 Win Type - Total 14 Types 9/0/2/0/0/0/0/1/0/2 Lore% 86 Gallery% 81 Achievement% 67 Wizard Run 0 Options --------- Layout 0 ASCII 0 Keyboard 0 Movement Mouse Keybinds 0 Fullscreen 1 Font 18/SmallcapsGlow Map View 76x50 Zoom Use 0% Tactical HUD 1 Map Filters NONE Filters NONE Steam 1 RUN: 37904965-3586-46eb-bce7-bad0f2b732ae